[Event "Late-Titled-Tuesday-Blitz-January-16-2024"]
[Site "Chess.com"]
[Date "2024.01.16"]
[Round "5"]
[White "santosalberto1987"]
[Black "GMJustin"]
[Result "1/2-1/2"]
[WhiteElo "2499"]
[BlackElo "2341"]
[TimeControl "180+1"]
[EndTime "14:54:18 PST"]
[Termination "Game drawn by stalemate"]

1. e4 {[%clk 0:03:00.9]} 1... c6 {[%clk 0:02:47.2]} 2. c4 {[%clk 0:03:00.3]}
2... d5 {[%clk 0:02:29.8]} 3. exd5 {[%clk 0:03:01.2]} 3... Nf6 {[%clk
0:02:27.7]} 4. Nc3 {[%clk 0:02:38.4]} 4... cxd5 {[%clk 0:02:23.9]} 5. Qa4+
{[%clk 0:02:37.8]} 5... Bd7 {[%clk 0:02:03.4]} 6. Qb3 {[%clk 0:02:37.2]} 6... d4
{[%clk 0:02:00.5]} 7. Nd5 {[%clk 0:02:29.1]} 7... Bc6 {[%clk 0:01:37.2]} 8.
Nxf6+ {[%clk 0:02:25.3]} 8... gxf6 {[%clk 0:01:31.7]} 9. d3 {[%clk 0:02:24.3]}
9... e5 {[%clk 0:01:30.4]} 10. Nf3 {[%clk 0:02:21.7]} 10... Na6 {[%clk
0:01:27.6]} 11. Be2 {[%clk 0:02:19.6]} 11... Nc5 {[%clk 0:01:20.4]} 12. Qc2
{[%clk 0:02:18.9]} 12... a5 {[%clk 0:01:20.2]} 13. O-O {[%clk 0:02:14.6]} 13...
Rg8 {[%clk 0:01:19]} 14. b3 {[%clk 0:02:07.5]} 14... Bd6 {[%clk 0:01:14]} 15. a3
{[%clk 0:02:03.9]} 15... f5 {[%clk 0:01:03.7]} 16. g3 {[%clk 0:01:55]} 16... Qf6
{[%clk 0:00:52.8]} 17. Bb2 {[%clk 0:01:50.1]} 17... Ne6 {[%clk 0:00:39.1]} 18.
Nd2 {[%clk 0:01:11.2]} 18... Ng5 {[%clk 0:00:35.3]} 19. Rfe1 {[%clk 0:00:53.1]}
19... Nh3+ {[%clk 0:00:31.8]} 20. Kf1 {[%clk 0:00:53.1]} 20... f4 {[%clk
0:00:30.2]} 21. Bxd4 {[%clk 0:00:10.7]} 21... fxg3 {[%clk 0:00:30]} 22. hxg3
{[%clk 0:00:11]} 22... Rxg3 {[%clk 0:00:26.4]} 23. Nf3 {[%clk 0:00:06.3]} 23...
Rxf3 {[%clk 0:00:14.9]} 24. Bxf3 {[%clk 0:00:06.3]} 24... Qxf3 {[%clk
0:00:15.1]} 25. Bxe5 {[%clk 0:00:05.7]} 25... Qg2+ {[%clk 0:00:12.3]} 26. Ke2
{[%clk 0:00:06.1]} 26... Bxe5 {[%clk 0:00:10.7]} 27. Kd1 {[%clk 0:00:06.3]}
27... Bf3+ {[%clk 0:00:01.1]} 28. Kc1 {[%clk 0:00:06.4]} 28... Qg5+ {[%clk
0:00:01.2]} 29. Kb1 {[%clk 0:00:06.1]} 29... Kf8 {[%clk 0:00:01.8]} 30. Ra2
{[%clk 0:00:05.5]} 30... Nf4 {[%clk 0:00:02.1]} 31. d4 {[%clk 0:00:05]} 31...
Bxd4 {[%clk 0:00:02]} 32. Rb2 {[%clk 0:00:04.6]} 32... Qf6 {[%clk 0:00:01.9]}
33. Ka2 {[%clk 0:00:04.1]} 33... Bxb2 {[%clk 0:00:02.1]} 34. Qxb2 {[%clk
0:00:05]} 34... Qxb2+ {[%clk 0:00:01.6]} 35. Kxb2 {[%clk 0:00:05.9]} 35... Re8
{[%clk 0:00:01.4]} 36. Rg1 {[%clk 0:00:05.7]} 36... Re7 {[%clk 0:00:01.7]} 37.
Kc3 {[%clk 0:00:06.4]} 37... Be4 {[%clk 0:00:01.9]} 38. Rg4 {[%clk 0:00:06.5]}
38... Ng6 {[%clk 0:00:01.9]} 39. b4 {[%clk 0:00:06.4]} 39... Bf5 {[%clk
0:00:02.3]} 40. Rg5 {[%clk 0:00:06.3]} 40... Be6 {[%clk 0:00:01.8]} 41. Rxa5
{[%clk 0:00:07.2]} 41... f5 {[%clk 0:00:01.8]} 42. Ra8+ {[%clk 0:00:07.3]} 42...
Kf7 {[%clk 0:00:01.8]} 43. a4 {[%clk 0:00:07.1]} 43... f4 {[%clk 0:00:02.1]} 44.
a5 {[%clk 0:00:07.5]} 44... f3 {[%clk 0:00:02.3]} 45. b5 {[%clk 0:00:06.6]}
45... Ne5 {[%clk 0:00:02.6]} 46. c5 {[%clk 0:00:06]} 46... Ng4 {[%clk
0:00:01.7]} 47. b6 {[%clk 0:00:04.4]} 47... Nxf2 {[%clk 0:00:01.5]} 48. a6
{[%clk 0:00:04.9]} 48... Ne4+ {[%clk 0:00:01.7]} 49. Kd4 {[%clk 0:00:05.3]}
49... bxa6 {[%clk 0:00:02.1]} 50. Ra7 {[%clk 0:00:05.3]} 50... f2 {[%clk
0:00:02.1]} 51. Rxe7+ {[%clk 0:00:03.9]} 51... Kxe7 {[%clk 0:00:02.1]} 52. b7
{[%clk 0:00:04.8]} 52... f1=Q {[%clk 0:00:02.2]} 53. b8=Q {[%clk 0:00:05.7]}
53... Qf2+ {[%clk 0:00:02.4]} 54. Kxe4 {[%clk 0:00:06]} 54... Qxc5 {[%clk
0:00:02.6]} 55. Qb7+ {[%clk 0:00:05.4]} 55... Kd6 {[%clk 0:00:02.8]} 56. Qxh7
{[%clk 0:00:05.5]} 56... Qc6+ {[%clk 0:00:03]} 57. Ke3 {[%clk 0:00:05.8]} 57...
Qc5+ {[%clk 0:00:03.1]} 58. Kd2 {[%clk 0:00:06.1]} 58... Qd4+ {[%clk 0:00:03.3]}
59. Qd3 {[%clk 0:00:06.2]} 59... Qxd3+ {[%clk 0:00:03.4]} 60. Kxd3 {[%clk
0:00:07.1]} 60... Kc5 {[%clk 0:00:03.6]} 61. Kc3 {[%clk 0:00:07.6]} 61... a5
{[%clk 0:00:03.9]} 62. Kb2 {[%clk 0:00:08.5]} 62... a4 {[%clk 0:00:04]} 63. Ka1
{[%clk 0:00:09.4]} 63... Kb4 {[%clk 0:00:04.2]} 64. Kb1 {[%clk 0:00:10.3]} 64...
a3 {[%clk 0:00:04.4]} 65. Ka1 {[%clk 0:00:11.2]} 65... Kc3 {[%clk 0:00:04.5]}
66. Kb1 {[%clk 0:00:12.1]} 66... Bb3 {[%clk 0:00:04]} 67. Ka1 {[%clk 0:00:13]}
67... a2 {[%clk 0:00:02.7]} 1/2-1/2

[Event "Late-Titled-Tuesday-Blitz-January-16-2024"]
[Site "Chess.com"]
[Date "2024.01.16"]
[Round "5"]
[White "MyDream003"]
[Black "Malev212"]
[Result "0-1"]
[WhiteElo "2848"]
[BlackElo "2659"]
[TimeControl "180+1"]
[EndTime "14:54:20 PST"]
[Termination "Malev212 won by checkmate"]

1. Nf3 {[%clk 0:02:53.8]} 1... g6 {[%clk 0:02:58.8]} 2. g3 {[%clk 0:02:47.2]}
2... Bg7 {[%clk 0:02:58.4]} 3. Bg2 {[%clk 0:02:47.4]} 3... c5 {[%clk 0:02:58.2]}
4. O-O {[%clk 0:02:47.1]} 4... Nc6 {[%clk 0:02:58.1]} 5. c4 {[%clk 0:02:45.4]}
5... d6 {[%clk 0:02:56.9]} 6. Nc3 {[%clk 0:02:36.9]} 6... Bg4 {[%clk 0:02:56.1]}
7. d3 {[%clk 0:02:32.1]} 7... Qd7 {[%clk 0:02:50.4]} 8. Be3 {[%clk 0:02:18.2]}
8... h5 {[%clk 0:02:46.3]} 9. h4 {[%clk 0:02:16.7]} 9... Nh6 {[%clk 0:02:43.4]}
10. Qa4 {[%clk 0:02:00]} 10... Nf5 {[%clk 0:02:29.7]} 11. Bd2 {[%clk 0:01:57.2]}
11... Nfd4 {[%clk 0:02:16.1]} 12. Nxd4 {[%clk 0:01:41.3]} 12... Nxd4 {[%clk
0:02:15.3]} 13. Qxd7+ {[%clk 0:01:39.6]} 13... Kxd7 {[%clk 0:02:15.1]} 14. f3
{[%clk 0:01:29.2]} 14... Be6 {[%clk 0:02:13.3]} 15. e3 {[%clk 0:01:26.4]} 15...
Nc2 {[%clk 0:01:57.2]} 16. Rad1 {[%clk 0:01:25.2]} 16... Nb4 {[%clk 0:01:51.4]}
17. Be1 {[%clk 0:01:25.5]} 17... Bf5 {[%clk 0:01:38.9]} 18. e4 {[%clk
0:01:10.9]} 18... Be6 {[%clk 0:01:38.5]} 19. Bf2 {[%clk 0:01:08.4]} 19... a6
{[%clk 0:01:16]} 20. a3 {[%clk 0:01:05.4]} 20... Nc6 {[%clk 0:01:02.8]} 21. Rd2
{[%clk 0:00:58.7]} 21... Nd4 {[%clk 0:00:51.6]} 22. Kh1 {[%clk 0:00:50.6]} 22...
b5 {[%clk 0:00:49.3]} 23. cxb5 {[%clk 0:00:47.1]} 23... axb5 {[%clk 0:00:48.7]}
24. f4 {[%clk 0:00:47.6]} 24... Bg4 {[%clk 0:00:39.2]} 25. e5 {[%clk 0:00:41.8]}
25... dxe5 {[%clk 0:00:33.2]} 26. Bxa8 {[%clk 0:00:40.4]} 26... Rxa8 {[%clk
0:00:31.6]} 27. Bxd4 {[%clk 0:00:40.7]} 27... exd4 {[%clk 0:00:28.6]} 28. Ne4
{[%clk 0:00:32.8]} 28... c4 {[%clk 0:00:23.7]} 29. Kg2 {[%clk 0:00:27.8]} 29...
Kc6 {[%clk 0:00:18.3]} 30. Rc1 {[%clk 0:00:21.3]} 30... Be6 {[%clk 0:00:18]} 31.
Kf2 {[%clk 0:00:18.2]} 31... Bd5 {[%clk 0:00:16.7]} 32. Ng5 {[%clk 0:00:17.8]}
32... e5 {[%clk 0:00:15.7]} 33. fxe5 {[%clk 0:00:16.9]} 33... Bxe5 {[%clk
0:00:15.7]} 34. Nf3 {[%clk 0:00:16.3]} 34... Bg7 {[%clk 0:00:14.5]} 35. dxc4
{[%clk 0:00:15.6]} 35... Bxf3 {[%clk 0:00:09.8]} 36. cxb5+ {[%clk 0:00:13]}
36... Kd5 {[%clk 0:00:07.7]} 37. Kxf3 {[%clk 0:00:11.7]} 37... Bh6 {[%clk
0:00:07.7]} 38. Rcd1 {[%clk 0:00:11.2]} 38... Bxd2 {[%clk 0:00:07.7]} 39. Rxd2
{[%clk 0:00:12.1]} 39... Ra5 {[%clk 0:00:07.6]} 40. b4 {[%clk 0:00:07.1]} 40...
Rxa3+ {[%clk 0:00:06.9]} 41. Kf4 {[%clk 0:00:07.7]} 41... Rb3 {[%clk 0:00:06.9]}
42. Kg5 {[%clk 0:00:06.4]} 42... Rxg3+ {[%clk 0:00:03.5]} 43. Kf6 {[%clk
0:00:06.8]} 43... Rb3 {[%clk 0:00:04.1]} 44. Kxf7 {[%clk 0:00:07]} 44... Rxb4
{[%clk 0:00:04.7]} 45. Kxg6 {[%clk 0:00:07.3]} 45... Rxb5 {[%clk 0:00:04.8]} 46.
Kxh5 {[%clk 0:00:07.5]} 46... Ke4+ {[%clk 0:00:05]} 47. Kg6 {[%clk 0:00:07.3]}
47... d3 {[%clk 0:00:04.8]} 48. h5 {[%clk 0:00:07.2]} 48... Ke3 {[%clk
0:00:04.9]} 49. Rh2 {[%clk 0:00:07.5]} 49... d2 {[%clk 0:00:04.4]} 50. Rh3+
{[%clk 0:00:07.8]} 50... Ke2 {[%clk 0:00:03]} 51. Rh2+ {[%clk 0:00:07.9]} 51...
Kd3 {[%clk 0:00:02.9]} 52. Rh1 {[%clk 0:00:08.2]} 52... Re5 {[%clk 0:00:02.1]}
53. h6 {[%clk 0:00:08.1]} 53... Re1 {[%clk 0:00:02.2]} 54. Rh3+ {[%clk
0:00:07.9]} 54... Kc4 {[%clk 0:00:02.6]} 55. Rh4+ {[%clk 0:00:08.3]} 55... Kc5
{[%clk 0:00:02.9]} 56. Rh5+ {[%clk 0:00:08.8]} 56... Kc6 {[%clk 0:00:03.2]} 57.
h7 {[%clk 0:00:08.1]} 57... d1=Q {[%clk 0:00:03.2]} 58. h8=Q {[%clk 0:00:08.5]}
58... Qd6+ {[%clk 0:00:03]} 59. Kg5 {[%clk 0:00:07.9]} 59... Re5+ {[%clk
0:00:03.4]} 60. Kg4 {[%clk 0:00:07.8]} 60... Qd4+ {[%clk 0:00:04]} 61. Kf3
{[%clk 0:00:07.9]} 61... Re3+ {[%clk 0:00:04.2]} 62. Kg2 {[%clk 0:00:08.2]}
62... Qd2+ {[%clk 0:00:04.8]} 63. Kh1 {[%clk 0:00:08.7]} 63... Re1# {[%clk
0:00:05.2]} 0-1

[Event "Late-Titled-Tuesday-Blitz-January-16-2024"]
[Site "Chess.com"]
[Date "2024.01.16"]
[Round "5"]
[White "tarno17"]
[Black "Maect19"]
[Result "0-1"]
[WhiteElo "2174"]
[BlackElo "2364"]
[TimeControl "180+1"]
[EndTime "14:54:21 PST"]
[Termination "Maect19 won by resignation"]

1. e4 {[%clk 0:03:00.9]} 1... e6 {[%clk 0:02:59.3]} 2. d4 {[%clk 0:03:01]} 2...
d5 {[%clk 0:02:59.4]} 3. Nd2 {[%clk 0:02:58]} 3... dxe4 {[%clk 0:02:59.2]} 4.
Nxe4 {[%clk 0:02:58]} 4... Bd7 {[%clk 0:02:59.8]} 5. Nf3 {[%clk 0:02:57]} 5...
Bc6 {[%clk 0:03:00.2]} 6. Ng3 {[%clk 0:02:57]} 6... Nd7 {[%clk 0:03:00.2]} 7.
Be3 {[%clk 0:02:55.3]} 7... Ngf6 {[%clk 0:02:53.7]} 8. Bd3 {[%clk 0:02:54.1]}
8... Be7 {[%clk 0:02:50.6]} 9. Qd2 {[%clk 0:02:28.7]} 9... Bxf3 {[%clk
0:02:46.8]} 10. gxf3 {[%clk 0:02:27.3]} 10... c5 {[%clk 0:02:40.3]} 11. c3
{[%clk 0:01:55.6]} 11... Qb6 {[%clk 0:02:34.1]} 12. Ne4 {[%clk 0:01:41.3]} 12...
Nd5 {[%clk 0:02:19.9]} 13. dxc5 {[%clk 0:01:01]} 13... Nxc5 {[%clk 0:02:12.5]}
14. Bxc5 {[%clk 0:00:54.5]} 14... Bxc5 {[%clk 0:02:11.4]} 15. Nxc5 {[%clk
0:00:55.4]} 15... Qxc5 {[%clk 0:02:11.1]} 16. O-O-O {[%clk 0:00:53.6]} 16...
O-O-O {[%clk 0:02:03.8]} 17. Qg5 {[%clk 0:00:37.9]} 17... g6 {[%clk 0:01:53]}
18. Be4 {[%clk 0:00:23.6]} 18... f5 {[%clk 0:01:39.9]} 19. Bxd5 {[%clk
0:00:22.9]} 19... Rxd5 {[%clk 0:01:39.1]} 20. Rxd5 {[%clk 0:00:22.6]} 20... exd5
{[%clk 0:01:33.9]} 21. Rd1 {[%clk 0:00:17]} 21... Rd8 {[%clk 0:01:29.6]} 22. Qh4
{[%clk 0:00:14.7]} 22... Rd7 {[%clk 0:01:23.2]} 23. Rd4 {[%clk 0:00:14]} 23...
Qf8 {[%clk 0:01:05.5]} 24. Qf4 {[%clk 0:00:09.8]} 24... Qe7 {[%clk 0:00:55.5]}
25. Qd2 {[%clk 0:00:09.3]} 25... Qe6 {[%clk 0:00:46.9]} 26. Kc2 {[%clk
0:00:06.6]} 26... a6 {[%clk 0:00:37.7]} 27. a3 {[%clk 0:00:06.4]} 27... Qc6
{[%clk 0:00:36.8]} 28. Kb1 {[%clk 0:00:04]} 28... Qe6 {[%clk 0:00:33.8]} 29. Qd1
{[%clk 0:00:03]} 29... b5 {[%clk 0:00:30.6]} 30. Ka2 {[%clk 0:00:02.4]} 30...
Kc7 {[%clk 0:00:29.5]} 31. Qb3 {[%clk 0:00:02.5]} 31... Qc6 {[%clk 0:00:28.1]}
32. Qb4 {[%clk 0:00:02.7]} 32... Kb6 {[%clk 0:00:27.4]} 33. Qf8 {[%clk
0:00:02.5]} 33... Qc5 {[%clk 0:00:26]} 34. Qb8+ {[%clk 0:00:02.6]} 34... Rb7
{[%clk 0:00:19.4]} 35. Qd8+ {[%clk 0:00:02.9]} 35... Qc7 {[%clk 0:00:19.5]} 36.
Rxd5 {[%clk 0:00:03.3]} 36... Qxd8 {[%clk 0:00:19.1]} 37. Rxd8 {[%clk
0:00:04.2]} 37... Re7 {[%clk 0:00:19.3]} 38. Rh8 {[%clk 0:00:04.7]} 38... Kc5
{[%clk 0:00:18.2]} 39. Kb3 {[%clk 0:00:04.5]} 39... Kd5 {[%clk 0:00:18.1]} 40.
Kb4 {[%clk 0:00:04.8]} 40... h5 {[%clk 0:00:16.6]} 41. Ka5 {[%clk 0:00:04.7]}
41... Re6 {[%clk 0:00:17]} 42. Rd8+ {[%clk 0:00:03.7]} 42... Kc4 {[%clk
0:00:16.6]} 43. Rd4+ {[%clk 0:00:03.4]} 43... Kb3 {[%clk 0:00:16.2]} 44. Rb4+
{[%clk 0:00:04]} 44... Kc2 {[%clk 0:00:16]} 45. a4 {[%clk 0:00:04.2]} 45... bxa4
{[%clk 0:00:15.3]} 46. Rxa4 {[%clk 0:00:04.3]} 46... Kxb2 {[%clk 0:00:15.6]} 47.
Rc4 {[%clk 0:00:04.2]} 47... Kb3 {[%clk 0:00:15.5]} 48. Rc7 {[%clk 0:00:03.9]}
48... Re2 {[%clk 0:00:15.1]} 49. Kxa6 {[%clk 0:00:03.5]} 49... Rxf2 {[%clk
0:00:15.5]} 50. c4 {[%clk 0:00:04]} 50... Rxh2 {[%clk 0:00:15.8]} 51. c5 {[%clk
0:00:04.4]} 51... Rc2 {[%clk 0:00:16.2]} 52. c6 {[%clk 0:00:04.6]} 52... Kc4
{[%clk 0:00:14.1]} 53. Rb7 {[%clk 0:00:03.8]} 53... Kd5 {[%clk 0:00:14.1]} 54.
Rb6 {[%clk 0:00:03.2]} 54... h4 {[%clk 0:00:13]} 55. Kb7 {[%clk 0:00:03.5]}
55... h3 {[%clk 0:00:12.6]} 56. c7 {[%clk 0:00:03.1]} 56... h2 {[%clk
0:00:11.5]} 57. Rb5+ {[%clk 0:00:01.6]} 57... Kd6 {[%clk 0:00:10.2]} 58. Rb6+
{[%clk 0:00:02.2]} 58... Kd7 {[%clk 0:00:09.8]} 59. Rb1 {[%clk 0:00:02.8]} 59...
Rxc7+ {[%clk 0:00:09.4]} 60. Kb6 {[%clk 0:00:03.4]} 60... Rc2 {[%clk 0:00:09.9]}
61. Rd1+ {[%clk 0:00:04]} 61... Ke6 {[%clk 0:00:10]} 62. Rh1 {[%clk 0:00:04.7]}
62... Kf6 {[%clk 0:00:10.4]} 63. Kb5 {[%clk 0:00:05.3]} 63... g5 {[%clk
0:00:10.7]} 64. Kb4 {[%clk 0:00:06]} 64... g4 {[%clk 0:00:11]} 65. Kb3 {[%clk
0:00:06.6]} 65... Rg2 {[%clk 0:00:10.5]} 66. fxg4 {[%clk 0:00:06.6]} 66... fxg4
{[%clk 0:00:10.6]} 67. Kc3 {[%clk 0:00:07.3]} 67... g3 {[%clk 0:00:11.2]} 68.
Kd3 {[%clk 0:00:08]} 68... Rg1 {[%clk 0:00:11.4]} 0-1

[Event "Late-Titled-Tuesday-Blitz-January-16-2024"]
[Site "Chess.com"]
[Date "2024.01.16"]
[Round "5"]
[White "varunkrishnanchess"]
[Black "mbojan"]
[Result "0-1"]
[WhiteElo "2640"]
[BlackElo "2861"]
[TimeControl "180+1"]
[EndTime "14:54:27 PST"]
[Termination "mbojan won by checkmate"]

1. e4 {[%clk 0:03:00.9]} 1... g6 {[%clk 0:03:00.1]} 2. d4 {[%clk 0:03:00.4]}
2... Nf6 {[%clk 0:03:00.5]} 3. e5 {[%clk 0:02:59.4]} 3... Nh5 {[%clk 0:03:00.9]}
4. Be2 {[%clk 0:02:56.1]} 4... d6 {[%clk 0:02:58.9]} 5. Bxh5 {[%clk 0:02:34.3]}
5... gxh5 {[%clk 0:02:58.5]} 6. Qxh5 {[%clk 0:02:34.4]} 6... dxe5 {[%clk
0:02:58.3]} 7. dxe5 {[%clk 0:02:28.6]} 7... Qd5 {[%clk 0:02:57.7]} 8. Nf3 {[%clk
0:02:22]} 8... Qe4+ {[%clk 0:02:57.8]} 9. Be3 {[%clk 0:02:13.4]} 9... Qxc2
{[%clk 0:02:57.4]} 10. O-O {[%clk 0:02:12]} 10... Qg6 {[%clk 0:02:58]} 11. Qh4
{[%clk 0:02:09.7]} 11... Rg8 {[%clk 0:02:55.9]} 12. Ne1 {[%clk 0:01:46.4]} 12...
Nc6 {[%clk 0:02:49.5]} 13. Qa4 {[%clk 0:01:16.3]} 13... Bh3 {[%clk 0:02:43]} 14.
g3 {[%clk 0:01:05.1]} 14... Bxf1 {[%clk 0:02:27.5]} 15. Kxf1 {[%clk 0:01:06]}
15... Qg4 {[%clk 0:02:27.8]} 16. Qb3 {[%clk 0:01:00.7]} 16... O-O-O {[%clk
0:02:20.4]} 17. Nc3 {[%clk 0:00:58.5]} 17... Nxe5 {[%clk 0:02:19.1]} 18. Rc1
{[%clk 0:00:52.6]} 18... Qc4+ {[%clk 0:01:53.9]} 19. Kg1 {[%clk 0:00:50.1]}
19... Qxb3 {[%clk 0:01:52.7]} 20. axb3 {[%clk 0:00:51]} 20... a6 {[%clk
0:01:46.5]} 21. Ne4 {[%clk 0:00:44.8]} 21... Rg6 {[%clk 0:01:42.6]} 22. Rc5
{[%clk 0:00:38.9]} 22... Nd3 {[%clk 0:01:30.2]} 23. Nxd3 {[%clk 0:00:36.1]}
23... Rxd3 {[%clk 0:01:31.1]} 24. Bf4 {[%clk 0:00:35.2]} 24... c6 {[%clk
0:01:30.9]} 25. Rf5 {[%clk 0:00:30]} 25... f6 {[%clk 0:01:23]} 26. Nc3 {[%clk
0:00:18.5]} 26... Bh6 {[%clk 0:01:13.1]} 27. Ne2 {[%clk 0:00:15.5]} 27... Rxb3
{[%clk 0:01:09.4]} 28. Rh5 {[%clk 0:00:15.3]} 28... Bxf4 {[%clk 0:01:05.3]} 29.
Nxf4 {[%clk 0:00:16.2]} 29... Rg7 {[%clk 0:01:06]} 30. Ne6 {[%clk 0:00:15.3]}
30... Rf7 {[%clk 0:01:06.2]} 31. Rh4 {[%clk 0:00:15.6]} 31... Rxb2 {[%clk
0:00:50.8]} 32. Rd4 {[%clk 0:00:14.9]} 32... b5 {[%clk 0:00:51.4]} 33. Rd8+
{[%clk 0:00:11.5]} 33... Kb7 {[%clk 0:00:51.9]} 34. Rd7+ {[%clk 0:00:11.4]}
34... Kb6 {[%clk 0:00:51.9]} 35. h4 {[%clk 0:00:09.1]} 35... h5 {[%clk
0:00:49.4]} 36. Nd8 {[%clk 0:00:04]} 36... Rh7 {[%clk 0:00:41.5]} 37. Rb7+
{[%clk 0:00:03.2]} 37... Kc5 {[%clk 0:00:36.2]} 38. Ne6+ {[%clk 0:00:03.2]}
38... Kd6 {[%clk 0:00:34]} 39. Nd4 {[%clk 0:00:03.2]} 39... c5 {[%clk
0:00:31.9]} 40. Nf5+ {[%clk 0:00:03.1]} 40... Ke6 {[%clk 0:00:31.3]} 41. Ne3
{[%clk 0:00:02.8]} 41... a5 {[%clk 0:00:28.3]} 42. Rb6+ {[%clk 0:00:03.7]} 42...
Kf7 {[%clk 0:00:27.9]} 43. Rc6 {[%clk 0:00:03.9]} 43... c4 {[%clk 0:00:27.9]}
44. Nd5 {[%clk 0:00:04.1]} 44... a4 {[%clk 0:00:27.8]} 45. Rc8 {[%clk
0:00:04.5]} 45... Ke6 {[%clk 0:00:26.8]} 46. Nf4+ {[%clk 0:00:04.2]} 46... Kd7
{[%clk 0:00:26.6]} 47. Ra8 {[%clk 0:00:04.3]} 47... c3 {[%clk 0:00:26.1]} 48.
Ra7+ {[%clk 0:00:04.4]} 48... Kc6 {[%clk 0:00:26.1]} 49. Ra8 {[%clk 0:00:03]}
49... Kb7 {[%clk 0:00:23.9]} 50. Rd8 {[%clk 0:00:02.5]} 50... a3 {[%clk
0:00:22.2]} 51. Kg2 {[%clk 0:00:01.3]} 51... a2 {[%clk 0:00:21.9]} 52. Rd7+
{[%clk 0:00:02]} 52... Kc6 {[%clk 0:00:18.6]} 53. Rd1 {[%clk 0:00:02.9]} 53...
Rb1 {[%clk 0:00:17.3]} 54. Rd3 {[%clk 0:00:02.8]} 54... a1=Q {[%clk 0:00:17.1]}
55. Ne2 {[%clk 0:00:03.2]} 55... b4 {[%clk 0:00:16.7]} 56. f3 {[%clk 0:00:01.7]}
56... Rb2 {[%clk 0:00:15.8]} 57. Kh3 {[%clk 0:00:01.6]} 57... Rxe2 {[%clk
0:00:15.1]} 58. g4 {[%clk 0:00:02.5]} 58... Qh1+ {[%clk 0:00:14.3]} 59. Kg3
{[%clk 0:00:03.4]} 59... hxg4 {[%clk 0:00:13.4]} 60. Kxg4 {[%clk 0:00:03]} 60...
Rxh4+ {[%clk 0:00:12.9]} 61. Kf5 {[%clk 0:00:03.3]} 61... Rh5+ {[%clk
0:00:11.9]} 62. Kg6 {[%clk 0:00:03.5]} 62... Rg5+ {[%clk 0:00:11.2]} 63. Kf7
{[%clk 0:00:03.9]} 63... Qh7+ {[%clk 0:00:11.6]} 64. Ke8 {[%clk 0:00:04.1]}
64... Qxd3 {[%clk 0:00:10.9]} 65. Kf7 {[%clk 0:00:03.4]} 65... Qxf3 {[%clk
0:00:08.3]} 66. Ke8 {[%clk 0:00:03.7]} 66... b3 {[%clk 0:00:09.2]} 67. Kf8
{[%clk 0:00:04.3]} 67... c2 {[%clk 0:00:10.1]} 68. Kf7 {[%clk 0:00:05.1]} 68...
b2 {[%clk 0:00:11]} 69. Ke8 {[%clk 0:00:05.8]} 69... c1=Q {[%clk 0:00:11.1]} 70.
Kf8 {[%clk 0:00:06.7]} 70... b1=Q {[%clk 0:00:12]} 71. Kf7 {[%clk 0:00:07.1]}
71... Qg6+ {[%clk 0:00:11.4]} 72. Kf8 {[%clk 0:00:06.8]} 72... Qg8# {[%clk
0:00:11.5]} 0-1